Cogmind - Beta 11.1 @@@ ROGUE MODE // 2022.04.24 @ 17:10:57 Player: QQQQ Result: Destroyed by G-67 Veteran with Plasma Rifle Performance ------------- Evolutions (6) 3000 Regions Visited (22) 4400 Robots Destroyed (38) 190 Value Destroyed (1194) 1194 Prototype IDs (38) 760 Alien Tech Used (2) 400 Bonus (2485) 2485 TOTAL SCORE: 12429 Bonus ------- High Alert Combat Kills 18 Follower Combat Kills 667 Entered DSFs 500 Met Zhirov 300 Met Warlord at Base 500 MAIN.C Attacked Warlord 500 Cogmind --------- Core Integrity 0/1150 Matter 275/300 Energy 100/100 System Corruption 0% Temperature Cool (0) Movement Core (50) Location -3/Proximity Caves Parts ------- > --- POWER (2) -------- (None) > --- PROPULSION (5) --- (None) > --- UTILITY (10) ----- Advanced Signal Interpreter Hacking Suite Hacking Suite > --- WEAPON (2) ------- (None) > --- INVENTORY (5) ---- Cooled Fission Core Micro Fission Core Advanced Myomer Leg Advanced Myomer Leg Advanced Myomer Leg Peak State ------------ > --- POWER ------------ Micro Fission Core Micro Fission Core > --- PROPULSION ------- Nuclear Pulse Thruster Nuclear Pulse Thruster Nuclear Pulse Thruster Nuclear Pulse Thruster Nuclear Pulse Thruster > --- UTILITY ---------- Medium Storage Unit Advanced Sensor Array Advanced Signal Interpreter Transmission Jammer Improved Reaction Control System Hacking Suite Hacking Suite Advanced Hacking Suite > --- WEAPON ----------- RU-N14's Throwing Claymores v3 Heavy Pick > --- INVENTORY -------- Light Fission Core Cooled Fission Core Micro Fission Core Nuclear Pulse Thruster Nuclear Pulse Thruster Advanced Surge Thruster Experimental Heat Sink Advanced Weight Redist. System Advanced ECM Suite [Rating: 87] Favorites ----------- Power Micro Fission Core Engine Light Ion Engine Power Core Micro Fission Core Reactor Fusion Reactor Propulsion Light Treads Treads Light Treads Leg Advanced Myomer Leg Wheel Compact Wheel Flight Unit Nuclear Pulse Thruster Utility Hacking Suite Device Advanced Sensor Array Storage Large Storage Unit Processor Advanced Signal Interpreter Hackware Hacking Suite Protection Experimental Propulsion Shielding Weapon Improved EM Shotgun Energy Gun Improved EM Shotgun Energy Cannon Advanced Beam Cannon Ballistic Gun Assault Rifle Ballistic Cannon Flak Cannon Launcher Improved Grenade Launcher Special Weapon Remote Datajack Slashing Weapon Great Axe Piercing Weapon Heavy Pick Special Melee Weapon Dirty Datajack Build | -11 -10 -10 -9 -9 -8 -7 -7 -7 -6 -6 -6 -6 -5 -5 -5 -5 -4 -4 -4 -4 -4 -3 ------- Run | Scr Mat Min Mat Sto Mat Fac Low Low Fac Was Fac DSF Fac Upp Upp War Pro Fac Upp Upp Zhi Pro Slots Evolved 12 | . . . 2 . 2 2 . . 2 . . . 2 . . . . 2 . . . . Power 1 | . . . . . . . . . 1 . . . . . . . . . . . . . Propulsion 3 | . . . 1 . 1 . . . 1 . . . . . . . . . . . . . Utility 8 | . . . 1 . 1 2 . . . . . . 2 . . . . 2 . . . . Weapon . | . . . . . . . . . . . . . . . . . . . . . . . Parts Attached 120 | 6 12 7 10 20 10 8 1 1 10 . . 8 2 . 2 6 2 4 1 3 6 1 Power 20 | 1 1 1 . 3 3 3 1 . 1 . . 3 . . . 1 . . . 1 1 . Engine 8 | 1 1 . . 3 1 1 1 . . . . . . . . . . . . . . . Core 11 | . . 1 . . 2 2 . . 1 . . 3 . . . 1 . . . 1 . . Reactor 1 | . . . . . . . . . . . . . . . . . . . . . 1 . Propulsion 29 | 2 7 . 3 3 4 . . . 1 . . 5 . . . . 2 1 . . 1 . Treads 10 | . 5 . 2 3 . . . . . . . . . . . . . . . . . . Leg 1 | . . . . . . . . . . . . . . . . . . . . . 1 . Wheel 4 | 2 2 . . . . . . . . . . . . . . . . . . . . . Hover . | . . . . . . . . . . . . . . . . . . . . . . . Flight 14 | . . . 1 . 4 . . . 1 . . 5 . . . . 2 1 . . . . Utility 36 | 1 3 1 2 1 3 1 . . 7 . . . 2 . 2 4 . 3 . 1 4 1 Device 19 | . . 1 2 . 2 1 . . 4 . . . 1 . 2 3 . 1 . 1 1 . Storage 6 | 1 2 . . . 1 . . . . . . . . . . . . 1 . . 1 . Processor 4 | . 1 . . 1 . . . . 1 . . . . . . . . 1 . . . . Hackware 5 | . . . . . . . . . 2 . . . 1 . . . . . . . 1 1 Protection 2 | . . . . . . . . . . . . . . . . 1 . . . . 1 . Artifact . | . . . . . . . . . . . . . . . . . . . . . . . Weapon 35 | 2 1 5 5 13 . 4 . 1 1 . . . . . . 1 . . 1 1 . . Energy Gun 14 | . 1 3 2 8 . . . . . . . . . . . . . . . . . . Energy Cannon 6 | . . . 2 4 . . . . . . . . . . . . . . . . . . Ballistic Gun 4 | 2 . 1 1 . . . . . . . . . . . . . . . . . . . Ballistic Cannon 1 | . . 1 . . . . . . . . . . . . . . . . . . . . Launcher 3 | . . . . 1 . 2 . . . . . . . . . . . . . . . . Special Weapon 3 | . . . . . . 1 . 1 . . . . . . . 1 . . . . . . Impact Weapon . | . . . . . . . . . . . . . . . . . . . . . . . Slashing Weapon 1 | . . . . . . 1 . . . . . . . . . . . . . . . . Piercing Weapon 2 | . . . . . . . . . 1 . . . . . . . . . . 1 . . Special Melee Weapon 1 | . . . . . . . . . . . . . . . . . . . 1 . . . Unidentified Prototypes 20 | . . . 4 4 . . . 1 1 . . . . . . 3 . . . . 7 . Corrupted Parts 2 | . . . . 2 . . . . . . . . . . . . . . . . . . System Corruption 20 | . . . . 20 . . . . . . . . . . . . . . . . . . Parts Lost 29 | . 2 . . . . 3 1 . . . . . . . . . 7 2 . 4 . 10 Power 5 | . 1 . . . . 1 1 . . . . . . . . . . . . 1 . 1 Propulsion 9 | . 1 . . . . . . . . . . . . . . . 4 1 . 2 . 1 Utility 11 | . . . . . . . . . . . . . . . . . 3 1 . . . 7 Weapon 4 | . . . . . . 2 . . . . . . . . . . . . . 1 . 1 Highest Loss Streak 7 | . 2 . . . . 3 1 . . . . . . . . . 6 2 . 4 . 7 To Critical Strikes . | . . . . . . . . . . . . . . . . . . . . . . . Average Slot Usage (%) 88 | . 96 99 93 100 89 75 66 55 76 86 86 89 94 94 93 94 90 65 68 49 55 50 Engine 4 | . 14 10 . 8 1 . 2 7 1 . . . . . . . . . . . . . Core 5 | . . 3 11 2 7 7 4 . 4 6 6 9 11 11 11 11 11 10 10 5 5 3 Treads 13 | . 18 28 28 33 . . . . . . . . . . . . . . . . . . Flight 13 | . . . . . 36 30 30 30 32 33 33 33 29 29 29 29 27 13 15 5 5 4 Device 10 | . . 3 20 15 8 7 5 . 10 13 13 13 17 17 16 17 15 12 10 10 15 9 Storage 8 | . 14 14 11 11 9 7 7 7 6 6 6 6 5 5 5 5 4 2 5 . . . Processor 7 | . 12 10 . 6 9 7 7 7 7 6 6 6 5 5 5 5 5 10 10 10 10 9 Hackware 5 | . . . . . . . . . 4 13 13 13 17 17 17 17 15 10 10 10 11 13 Energy Gun 8 | . 9 14 10 20 18 6 . . . . . . . . . . . . . . . . Energy Cannon 1 | . . . 11 1 . . . . . . . . . . . . . . . . . . Ballistic Gun 3 | . 18 10 . . . . . . . . . . . . . . . . . . . . Piercing Weapon 1 | . . . . . . . . . 6 6 6 6 5 5 5 5 5 3 . 4 5 3 Naked Turns . | . . . . . . . . . . . . . . . . . . . . . . . Heaviest Build 39 | 11 26 37 39 39 24 25 20 19 26 26 26 26 27 27 28 29 29 34 34 34 11 11 Greatest Support 60 | 32 40 40 60 60 26 26 20 20 26 26 26 30 30 30 30 30 30 36 36 36 24 24 Greatest Overweight (x) 1 | . . . . . . . . . . . . . . . . . 1 . . . . . Average Overweight (x) . | . . . . . . . . . . . . . . . . . . . . . . . Largest Inventory Capacity 15 | 8 15 15 15 15 15 10 10 10 10 10 10 10 10 10 10 10 10 15 15 15 5 5 Average Capacity 12 | 7 12 15 15 15 10 10 10 10 10 10 10 10 10 10 10 10 9 8 15 6 5 5 Most Carried 15 | 6 11 15 15 15 15 10 7 10 10 10 10 10 10 10 10 10 10 6 6 7 5 5 Average Carried 10 | 4 7 11 13 14 9 9 6 9 8 9 10 9 9 10 9 9 8 5 5 3 3 5 Final Capacity 15 | 8 15 15 15 15 10 10 10 10 10 10 10 10 10 10 10 10 5 15 15 5 5 5 Final Carried 15 | 6 11 12 14 15 10 7 7 10 10 10 10 10 10 10 10 10 5 6 6 3 5 5 Class Distribution -------------------- 38% | Mutant 25% | Hacker-Sprinter 13% | Sprinter 11% | Scavenger-Mutant 10% | Hacker-Mutant Dominant Class ---------------- Mutant | -10/Materials Mutant | -10/Mines Mutant | -9/Materials Scavenger-Mutant | -9/Storage Sprinter | -8/Materials Sprinter | -7/Factory Sprinter | -7/Lower Caves Sprinter | -7/Lower Caves Hacker-Sprinter | -6/Factory Hacker-Sprinter | -6/Waste Hacker-Sprinter | -6/Factory Hacker-Sprinter | -6/DSF Hacker-Sprinter | -5/Factory Hacker-Sprinter | -5/Upper Caves Hacker-Sprinter | -5/Upper Caves Hacker-Sprinter | -5/Warlord Hacker-Sprinter | -4/Proximity Caves Hacker-Mutant | -4/Factory Hacker-Mutant | -4/Upper Caves Hacker-Mutant | -4/Upper Caves Hacker-Mutant | -4/Zhirov Hacker-Mutant | -3/Proximity Caves Resources | -11 -10 -10 -9 -9 -8 -7 -7 -7 -6 -6 -6 -6 -5 -5 -5 -5 -4 -4 -4 -4 -4 -3 ----------- Run | Scr Mat Min Mat Sto Mat Fac Low Low Fac Was Fac DSF Fac Upp Upp War Pro Fac Upp Upp Zhi Pro Matter Collected 1657 | 292 241 230 56 190 . 60 216 . 110 . . 38 . 62 10 . 67 . 40 27 . 18 Remotely . | . . . . . . . . . . . . . . . . . . . . . . . Salvage Created 1489 | 70 324 79 376 505 . 135 . . . . . . . . . . . . . . . . Parts 86 | 2 14 6 19 30 . 15 . . . . . . . . . . . . . . . . Haulers Intercepted 4 | . 1 . 1 2 . . . . . . . . . . . . . . . . . . Recyclers Shooed . | . . . . . . . . . . . . . . . . . . . . . . . Parts Field Recycled . | . . . . . . . . . . . . . . . . . . . . . . . Retrieved Matter . | . . . . . . . . . . . . . . . . . . . . . . . Parts Self-Destructed 37 | . . . . . . . 4 . . . . . . 2 13 11 . . . 7 . . Prevented 3 | . . . . . . . . . . . . . . . 3 . . . . . . . Kills | -11 -10 -10 -9 -9 -8 -7 -7 -7 -6 -6 -6 -6 -5 -5 -5 -5 -4 -4 -4 -4 -4 -3 ------- Run | Scr Mat Min Mat Sto Mat Fac Low Low Fac Was Fac DSF Fac Upp Upp War Pro Fac Upp Upp Zhi Pro Combat Hostiles Destroyed 31 | . 6 2 7 9 . 7 . . . . . . . . . . . . . . . . Guns 23 | . 6 2 5 6 . 4 . . . . . . . . . . . . . . . . Cannons 2 | . . . 2 . . . . . . . . . . . . . . . . . . . AOE 5 | . . . . 2 . 3 . . . . . . . . . . . . . . . . Classes Destroyed 7 | 1 3 . 1 2 . . . . . . . . . . . . . . . . . . Hauler 4 | . 1 . 1 2 . . . . . . . . . . . . . . . . . . Recycler 1 | 1 . . . . . . . . . . . . . . . . . . . . . . Watcher 2 | . 1 . . 1 . . . . . . . . . . . . . . . . . . Swarmer 10 | . . . . 3 . 7 . . . . . . . . . . . . . . . . Grunt 16 | . 6 2 5 3 . . . . . . . . . . . . . . . . . . Brawler 1 | . . . . 1 . . . . . . . . . . . . . . . . . . Sentry 4 | . . . 2 2 . . . . . . . . . . . . . . . . . . Best Kill Streak 5 | 1 5 2 3 3 . 4 . . . . . . . . . . . . . . . . Combat Bots Only 4 | . 4 2 3 3 . 4 . . . . . . . . . . . . . . . . Max Kills in Single Turn 1 | 1 1 1 1 1 . 1 . . . . . . . . . . . . . . . . Gunslinging . | . . . . . . . . . . . . . . . . . . . . . . . Exploded 1 | . . . . 1 . 1 . . . . . . . . . . . . . . . . Melee . | . . . . . . . . . . . . . . . . . . . . . . . Uniques/NPCs Destroyed . | . . . . . . . . . . . . . . . . . . . . . . . Combat | -11 -10 -10 -9 -9 -8 -7 -7 -7 -6 -6 -6 -6 -5 -5 -5 -5 -4 -4 -4 -4 -4 -3 -------- Run | Scr Mat Min Mat Sto Mat Fac Low Low Fac Was Fac DSF Fac Upp Upp War Pro Fac Upp Upp Zhi Pro Damage Taken 4582 | . 296 239 278 381 . 512 134 . . . . 69 . . . . 731 92 . 394 . 1456 Core 1622 | . 11 45 56 42 . 144 55 . . . . 22 . . . . 148 38 . 112 . 949 Absorbed by Shields . | . . . . . . . . . . . . . . . . . . . . . . . Redirected to Shielding 155 | . . . . . . . . . . . . . . . . . . . . . . 155 Regen/Repaired (Parts) 91 | . 91 . . . . . . . . . . . . . . . . . . . . . Core Remaining (%) 86 | 100 . 77 . 75 100 . . 71 . . . 97 . . . . 85 . . . . . Volleys Fired 110 | 8 31 9 17 33 1 11 . . . . . . . . . . . . . . . . Largest 2 | 2 2 2 2 2 2 2 . . . . . . . . . . . . . . . . Hottest 136 | 40 60 60 136 113 90 90 . . . . . . . . . . . . . . . . Shots Fired 205 | 16 62 18 31 61 2 15 . . . . . . . . . . . . . . . . Gun 181 | 16 62 18 21 54 2 8 . . . . . . . . . . . . . . . . Cannon 17 | . . . 10 7 . . . . . . . . . . . . . . . . . . Launcher 5 | . . . . . . 5 . . . . . . . . . . . . . . . . Special 2 | . . . . . . 2 . . . . . . . . . . . . . . . . Kinetic 77 | 16 52 9 . . . . . . . . . . . . . . . . . . . . Thermal 57 | . 10 9 31 7 . . . . . . . . . . . . . . . . . . Explosive 5 | . . . . . . 5 . . . . . . . . . . . . . . . . Electromagnetic 64 | . . . . 54 2 8 . . . . . . . . . . . . . . . . Robot Hit Streak 19 | 4 11 7 11 19 10 6 . . . . . . . . . . . . . . . . Robot Miss Streak 4 | 3 3 1 1 4 3 1 . . . . . . . . . . . . . . . . Penetration Max . | . . . . . . . . . . . . . . . . . . . . . . . Secondary Targets 2 | . . . . 1 . 1 . . . . . . . . . . . . . . . . Max Gunslinging Chain 1 | . . . . 1 . 1 . . . . . . . . . . . . . . . . Shots Hit Robots 156 | 9 47 15 23 48 1 13 . . . . . . . . . . . . . . . . Core Hits 64 | 2 18 5 10 19 . 10 . . . . . . . . . . . . . . . . Critical Kills . | . . . . . . . . . . . . . . . . . . . . . . . Critical Parts Destroyed . | . . . . . . . . . . . . . . . . . . . . . . . Critical Strikes 1 | . . . 1 . . . . . . . . . . . . . . . . . . . Burn 1 | . . . 1 . . . . . . . . . . . . . . . . . . . Melee Attacks 51 | . . . . . . 1 13 1 . . . . . . 2 . 32 . . 2 . . Impact . | . . . . . . . . . . . . . . . . . . . . . . . Slashing 15 | . . . . . . 1 13 1 . . . . . . . . . . . . . . Piercing 36 | . . . . . . . . . . . . . . . 2 . 32 . . 2 . . Sneak Attacks . | . . . . . . . . . . . . . . . . . . . . . . . Combat Hostiles . | . . . . . . . . . . . . . . . . . . . . . . . Follow-up Attacks . | . . . . . . . . . . . . . . . . . . . . . . . Damage Inflicted 2797 | 91 499 178 427 1014 18 570 . . . . . . . . . . . . . . . . Guns 1986 | 91 499 178 280 816 18 104 . . . . . . . . . . . . . . . . Cannons 183 | . . . 143 40 . . . . . . . . . . . . . . . . . . Explosions 624 | . . . . 158 . 466 . . . . . . . . . . . . . . . . Melee . | . . . . . . . . . . . . . . . . . . . . . . . Ramming 4 | . . . 4 . . . . . . . . . . . . . . . . . . . Kinetic 616 | 91 425 100 . . . . . . . . . . . . . . . . . . . . Thermal 773 | . 74 78 423 198 . . . . . . . . . . . . . . . . . . Explosive 466 | . . . . . . 466 . . . . . . . . . . . . . . . . Electromagnetic 938 | . . . . 816 18 104 . . . . . . . . . . . . . . . . Impact . | . . . . . . . . . . . . . . . . . . . . . . . Slashing . | . . . . . . . . . . . . . . . . . . . . . . . Piercing . | . . . . . . . . . . . . . . . . . . . . . . . Highest Corruption 23 | . . . . 20 . . . . . . . . . . . 5 23 . . . . . Average Corruption 7 | . . . . 12 . . . . . . . . . . . 5 7 . . . . . Corruption Purged . | . . . . . . . . . . . . . . . . . . . . . . . Corruption Blocked . | . . . . . . . . . . . . . . . . . . . . . . . Effects 10 | . . . . . . . . . . . . . . . . 1 9 . . . . . Message Errors 5 | . . . . . . . . . . . . . . . . 1 4 . . . . . Matter Fused 2 | . . . . . . . . . . . . . . . . . 2 . . . . . Energy Discharges 1 | . . . . . . . . . . . . . . . . . 1 . . . . . Data Loss (major) 1 | . . . . . . . . . . . . . . . . . 1 . . . . . Alerts 1 | . . . . . . . . . . . . . . . . . 1 . . . . . Overload Shots . | . . . . . . . . . . . . . . . . . . . . . . . Overflow Damage 225 | . . . . . . 225 . . . . . . . . . . . . . . . . Projectiles . | . . . . . . . . . . . . . . . . . . . . . . . Explosions 225 | . . . . . . 225 . . . . . . . . . . . . . . . . Melee . | . . . . . . . . . . . . . . . . . . . . . . . Knockbacks . | . . . . . . . . . . . . . . . . . . . . . . . Impact . | . . . . . . . . . . . . . . . . . . . . . . . Kinetic . | . . . . . . . . . . . . . . . . . . . . . . . Secondary . | . . . . . . . . . . . . . . . . . . . . . . . Self-Inflicted Damage 280 | . . . . 113 . 167 . . . . . . . . . . . . . . . . Shots 6 | . . . . 3 . 3 . . . . . . . . . . . . . . . . Rammed 1 | . . . 1 . . . . . . . . . . . . . . . . . . . Targets Rammed 1 | . . . 1 . . . . . . . . . . . . . . . . . . . Kicked . | . . . . . . . . . . . . . . . . . . . . . . . Crushed . | . . . . . . . . . . . . . . . . . . . . . . . Highest Temperature 255 | . 64 84 255 12 30 84 5 . . . . . 103 224 169 155 113 . . . . . Average Temperature 55 | . 26 51 107 5 14 42 5 . . . . . 48 70 63 47 44 . . . . . Received Heat Transfer 824 | . 162 105 159 87 . 48 42 . . . . . . . . . 18 9 . . . 194 Effects 2 | . . . 1 . . . . . . . . . . 1 . . . . . . . . Energy Bleed 1 | . . . . . . . . . . . . . . 1 . . . . . . . . Interference 1 | . . . 1 . . . . . . . . . . . . . . . . . . . Siege Activations . | . . . . . . . . . . . . . . . . . . . . . . . Robots Corrupted 2 | . . . . 2 . . . . . . . . . . . . . . . . . . Combat Hostiles 1 | . . . . 1 . . . . . . . . . . . . . . . . . . Parts Fried 6 | . . . . 6 . . . . . . . . . . . . . . . . . . Impact Corruptions . | . . . . . . . . . . . . . . . . . . . . . . . Robots Melted . | . . . . . . . . . . . . . . . . . . . . . . . Combat Hostiles . | . . . . . . . . . . . . . . . . . . . . . . . Parts Melted 2 | . . . 2 . . . . . . . . . . . . . . . . . . . Heat Transferred 1502 | . 175 175 878 274 . . . . . . . . . . . . . . . . . . Parts Sabotaged . | . . . . . . . . . . . . . . . . . . . . . . . Parts Stolen . | . . . . . . . . . . . . . . . . . . . . . . . Parts Stripped . | . . . . . . . . . . . . . . . . . . . . . . . Power Chain Reactions 3 | . . . . 3 . . . . . . . . . . . . . . . . . . Missiles Intercepted . | . . . . . . . . . . . . . . . . . . . . . . . Alert | -11 -10 -10 -9 -9 -8 -7 -7 -7 -6 -6 -6 -6 -5 -5 -5 -5 -4 -4 -4 -4 -4 -3 ------- Run | Scr Mat Min Mat Sto Mat Fac Low Low Fac Was Fac DSF Fac Upp Upp War Pro Fac Upp Upp Zhi Pro Peak Influence 744 | 5 239 165 277 214 118 744 . . 290 101 89 322 183 . . . . 97 . . . . Initial 220 | . 3 26 64 38 61 53 . . 220 101 70 62 168 . . . . 69 . . . . Average 123 | 1 121 23 170 88 89 373 . . 253 101 85 236 171 . . . . 80 . . . . Maximum Alert Level 3 | . 1 . 1 1 . 3 . . 1 . . 1 . . . . . . . . . . Low Security (%) 75 | 100 69 100 71 90 100 12 . . . 100 100 15 100 . . . . 100 . . . . Level 1 20 | . 30 . 28 9 . 49 . . 100 . . 84 . . . . . . . . . . Level 2 3 | . . . . . . 34 . . . . . . . . . . . . . . . . Level 3 . | . . . . . . 3 . . . . . . . . . . . . . . . . Level 4 . | . . . . . . . . . . . . . . . . . . . . . . . Level 5 . | . . . . . . . . . . . . . . . . . . . . . . . High Security . | . . . . . . . . . . . . . . . . . . . . . . . Max Security . | . . . . . . . . . . . . . . . . . . . . . . . Squads Dispatched 11 | . 3 . . . . 1 . . 2 . . 1 1 . . . 1 1 . 1 . . Investigation 3 | . 1 . . . . . . . 2 . . . . . . . . . . . . . Extermination . | . . . . . . . . . . . . . . . . . . . . . . . Reinforcement 6 | . 2 . . . . 1 . . . . . 1 1 . . . . 1 . . . . Assault 2 | . . . . . . . . . . . . . . . . . 1 . . 1 . . Garrison . | . . . . . . . . . . . . . . . . . . . . . . . Intercept . | . . . . . . . . . . . . . . . . . . . . . . . Searches Triggered 1 | . . . . . . 1 . . . . . . . . . . . . . . . . Construction Impeded . | . . . . . . . . . . . . . . . . . . . . . . . Haulers Reinforced . | . . . . . . . . . . . . . . . . . . . . . . . Active Scanning Responses . | . . . . . . . . . . . . . . . . . . . . . . . Cargo Convoy Interrupts . | . . . . . . . . . . . . . . . . . . . . . . . Stealth | -11 -10 -10 -9 -9 -8 -7 -7 -7 -6 -6 -6 -6 -5 -5 -5 -5 -4 -4 -4 -4 -4 -3 --------- Run | Scr Mat Min Mat Sto Mat Fac Low Low Fac Was Fac DSF Fac Upp Upp War Pro Fac Upp Upp Zhi Pro Distress Signals 6 | . . . . 1 1 4 . . . . . . . . . . . . . . . . Communications Jammed . | . . . . . . . . . . . . . . . . . . . . . . . Distress Signals . | . . . . . . . . . . . . . . . . . . . . . . . Times Spotted 156 | . 13 5 9 14 8 32 7 . 2 . . 5 . 2 10 6 8 8 . 7 . 20 Peak Tracking Total 15 | . 3 3 3 4 7 11 10 . 1 . . 4 . 1 6 10 8 8 . 9 . 15 Tactical Retreats 28 | . 1 . . 1 1 9 6 . . . . . . . . . 4 . . 4 . 2 Traps | -11 -10 -10 -9 -9 -8 -7 -7 -7 -6 -6 -6 -6 -5 -5 -5 -5 -4 -4 -4 -4 -4 -3 ------- Run | Scr Mat Min Mat Sto Mat Fac Low Low Fac Was Fac DSF Fac Upp Upp War Pro Fac Upp Upp Zhi Pro Traps Triggered 4 | . 1 1 . . . 1 . . 1 . . . . . . . . . . . . . Indirectly . | . . . . . . . . . . . . . . . . . . . . . . . Trap Hack Attempts . | . . . . . . . . . . . . . . . . . . . . . . . Triggered . | . . . . . . . . . . . . . . . . . . . . . . . Disarmed . | . . . . . . . . . . . . . . . . . . . . . . . Reprogrammed . | . . . . . . . . . . . . . . . . . . . . . . . Reused . | . . . . . . . . . . . . . . . . . . . . . . . Traps Extracted . | . . . . . . . . . . . . . . . . . . . . . . . Installed . | . . . . . . . . . . . . . . . . . . . . . . . Triggered 12 | . . . . . . . 1 . . . . . . . 3 8 . . . . . . Machines | -11 -10 -10 -9 -9 -8 -7 -7 -7 -6 -6 -6 -6 -5 -5 -5 -5 -4 -4 -4 -4 -4 -3 ---------- Run | Scr Mat Min Mat Sto Mat Fac Low Low Fac Was Fac DSF Fac Upp Upp War Pro Fac Upp Upp Zhi Pro Machines Disabled 13 | . . 4 1 4 . 3 . . . . . 1 . . . . . . . . . . Max in Single Turn 3 | . . . 1 1 . 3 . . . . . . . . . . . . . . . . Garrison Access 2 | . . . . . . . . . 1 . . . 1 . . . . . . . . . Machines Sabotaged . | . . . . . . . . . . . . . . . . . . . . . . . Garrisons Compromised . | . . . . . . . . . . . . . . . . . . . . . . . Overloaded Fab Kills . | . . . . . . . . . . . . . . . . . . . . . . . Hacking | -11 -10 -10 -9 -9 -8 -7 -7 -7 -6 -6 -6 -6 -5 -5 -5 -5 -4 -4 -4 -4 -4 -3 --------- Run | Scr Mat Min Mat Sto Mat Fac Low Low Fac Was Fac DSF Fac Upp Upp War Pro Fac Upp Upp Zhi Pro Machines Accessed 59 | . 3 2 3 7 2 11 . . 9 . 3 . 1 . 1 6 . 2 . . 9 . Terminals 24 | . 2 1 2 6 2 4 . . 5 . 1 . . . . . . 1 . . . . Fabricators 3 | . . . . . . 1 . . 2 . . . . . . . . . . . . . Repair Stations 5 | . 1 . . . . 3 . . 1 . . . . . . . . . . . . . Recycling Units 5 | . . . . 1 . 2 . . . . 1 . . . . . . 1 . . . . Scanalyzers 2 | . . . 1 . . . . . . . 1 . . . . . . . . . . . Garrison Access 3 | . . . . . . 1 . . 1 . . . 1 . . . . . . . . . Total Hacks 155 | . 9 3 7 12 7 22 . . 17 . 4 . 2 . 7 15 . 2 . . 48 . Successful 113 | . 5 3 4 4 4 8 . . 8 . 4 . 1 . 7 15 . 2 . . 48 . Failed 41 | . 4 . 3 8 3 13 . . 9 . . . 1 . . . . . . . . . Catastrophic 8 | . 1 . 1 1 1 1 . . 3 . . . . . . . . . . . . . Database Lockouts 1 | . . . . . . 1 . . . . . . . . . . . . . . . . Manual 30 | . 4 1 1 5 7 6 . 1 4 . . . . . . 1 . . . . . . Terminals 51 | . 6 2 5 11 7 9 . . 9 . 1 . . . . . . 1 . . . . Fabricators 7 | . . . . . . 3 . . 4 . . . . . . . . . . . . . Repair Stations 8 | . 3 . . . . 3 . . 2 . . . . . . . . . . . . . Recycling Units 8 | . . . . 1 . 5 . . . . 1 . . . . . . 1 . . . . Scanalyzers 4 | . . . 2 . . . . . . . 2 . . . . . . . . . . . Garrison Access 6 | . . . . . . 2 . . 2 . . . 2 . . . . . . . . . Terminal Hacks 91 | . 2 3 2 3 3 3 . . 3 . 1 . . . 7 15 . 1 . . 48 . Record 54 | . 1 . . . . 1 . . 2 . . . . . 7 7 . . . . 36 . Part Schematic 5 | . . . . . . 1 . . . . . . . . . . . . . . 4 . Robot Analysis 5 | . . . 1 . . . . . . . . . . . . . . . . . 4 . Prototype ID Bank 10 | . . . . . . . . . . . . . . . . 6 . . . . 4 . Open Door 5 | . . 1 . 2 . . . . . . . . . . . 2 . . . . . . Open DSF 3 | . . . . . . . . . 1 . 1 . . . . . . 1 . . . . Branch Access Points 2 | . . . . . 2 . . . . . . . . . . . . . . . . . Emergency Access Points 1 | . . . . . . 1 . . . . . . . . . . . . . . . . Alert Level 1 | . . . . . 1 . . . . . . . . . . . . . . . . . Unreport Threat 1 | . . 1 . . . . . . . . . . . . . . . . . . . . Locate Traps 1 | . . . . 1 . . . . . . . . . . . . . . . . . . Recall Investigation 1 | . 1 . . . . . . . . . . . . . . . . . . . . . Registered Components 1 | . . . 1 . . . . . . . . . . . . . . . . . . . Zone Layout 1 | . . 1 . . . . . . . . . . . . . . . . . . . . Fabricator Hacks 4 | . . . . . . 1 . . 3 . . . . . . . . . . . . . Load Schematic 2 | . . . . . . . . . 2 . . . . . . . . . . . . . Build 2 | . . . . . . 1 . . 1 . . . . . . . . . . . . . Repair Station Hacks 3 | . 2 . . . . . . . 1 . . . . . . . . . . . . . Scan Component 2 | . 1 . . . . . . . 1 . . . . . . . . . . . . . Repair 1 | . 1 . . . . . . . . . . . . . . . . . . . . . Recycling Unit Hacks 7 | . . . . 1 . 4 . . . . 1 . . . . . . 1 . . . . Process 1 | . . . . . . 1 . . . . . . . . . . . . . . . . Report Inventory 5 | . . . . 1 . 2 . . . . 1 . . . . . . 1 . . . . Retrieve Matter 1 | . . . . . . 1 . . . . . . . . . . . . . . . . Scanalyzer 4 | . . . 2 . . . . . . . 2 . . . . . . . . . . . Insert Component 2 | . . . 1 . . . . . . . 1 . . . . . . . . . . . Analyze 2 | . . . 1 . . . . . . . 1 . . . . . . . . . . . Garrison Access Hacks 2 | . . . . . . . . . 1 . . . 1 . . . . . . . . . Seal Access 2 | . . . . . . . . . 1 . . . 1 . . . . . . . . . Unauthorized Hacks 2 | . 1 . . . 1 . . . . . . . . . . . . . . . . . Terminals 2 | . 1 . . . 1 . . . . . . . . . . . . . . . . . Assimilate 1 | . 1 . . . . . . . . . . . . . . . . . . . . . Botnet 1 | . . . . . 1 . . . . . . . . . . . . . . . . . Fabricators . | . . . . . . . . . . . . . . . . . . . . . . . Repair Stations . | . . . . . . . . . . . . . . . . . . . . . . . Recycling Units . | . . . . . . . . . . . . . . . . . . . . . . . Scanalyzers . | . . . . . . . . . . . . . . . . . . . . . . . Garrison Access . | . . . . . . . . . . . . . . . . . . . . . . . Data Cores Recovered . | . . . . . . . . . . . . . . . . . . . . . . . Used . | . . . . . . . . . . . . . . . . . . . . . . . Hacking Detections 31 | . 2 1 3 5 1 9 . . 8 . 1 . . . . . . 1 . . . . Full Trace Events 2 | . . . . . . . . . 2 . . . . . . . . . . . . . Feedback Events . | . . . . . . . . . . . . . . . . . . . . . . . Feedback Blocked . | . . . . . . . . . . . . . . . . . . . . . . . Robot Schematics Acquired . | . . . . . . . . . . . . . . . . . . . . . . . Robots Built . | . . . . . . . . . . . . . . . . . . . . . . . Authchips . | . . . . . . . . . . . . . . . . . . . . . . . Time . | . . . . . . . . . . . . . . . . . . . . . . . Total Robot Build Rating . | . . . . . . . . . . . . . . . . . . . . . . . Part Schematics Acquired 7 | . . . 1 . . 1 . . . . 1 . . . . . . . . . 4 . Parts Built 1 | . . . . . . 1 . . . . . . . . . . . . . . . . Authchips . | . . . . . . . . . . . . . . . . . . . . . . . Time 218 | . . . . . . 169 . . 49 . . . . . . . . . . . . . Total Part Build Rating 6 | . . . . . . 6 . . . . . . . . . . . . . . . . Parts Repaired 1 | . 1 . . . . . . . . . . . . . . . . . . . . . Time 26 | . 26 . . . . . . . . . . . . . . . . . . . . . Parts Recycled . | . . . . . . . . . . . . . . . . . . . . . . . Recycled Matter 24 | . . . . . . 24 . . . . . . . . . . . . . . . . Retrieved Matter 24 | . . . . . . 24 . . . . . . . . . . . . . . . . Retrieved Components . | . . . . . . . . . . . . . . . . . . . . . . . Parts Scanalyzed 2 | . . . 1 . . . . . . . 1 . . . . . . . . . . . Part Schematics Acquired 2 | . . . 1 . . . . . . . 1 . . . . . . . . . . . Parts Damaged 1 | . . . 1 . . . . . . . . . . . . . . . . . . . Bothacking | -11 -10 -10 -9 -9 -8 -7 -7 -7 -6 -6 -6 -6 -5 -5 -5 -5 -4 -4 -4 -4 -4 -3 ------------ Run | Scr Mat Min Mat Sto Mat Fac Low Low Fac Was Fac DSF Fac Upp Upp War Pro Fac Upp Upp Zhi Pro Used RIF Installer . | . . . . . . . . . . . . . . . . . . . . . . . Robots Hacked 2 | . . . . . . 2 . . . . . . . . . . . . . . . . Non-combat 1 | . . . . . . 1 . . . . . . . . . . . . . . . . Combat 1 | . . . . . . 1 . . . . . . . . . . . . . . . . Robot Hacks Applied 2 | . . . . . . 2 . . . . . . . . . . . . . . . . parse_system 2 | . . . . . . 2 . . . . . . . . . . . . . . . . Relay Couplers Released . | . . . . . . . . . . . . . . . . . . . . . . . Fabnet Peak Effective % . | . . . . . . . . . . . . . . . . . . . . . . . Robots Rewired . | . . . . . . . . . . . . . . . . . . . . . . . Allies Hacked 2 | . . . . . . . . . . . . . . . 2 . . . . . . . Hacks Repelled . | . . . . . . . . . . . . . . . . . . . . . . . Allies | -11 -10 -10 -9 -9 -8 -7 -7 -7 -6 -6 -6 -6 -5 -5 -5 -5 -4 -4 -4 -4 -4 -3 -------- Run | Scr Mat Min Mat Sto Mat Fac Low Low Fac Was Fac DSF Fac Upp Upp War Pro Fac Upp Upp Zhi Pro Total Allies 22 | . . 2 . . . . . . . 20 . . . . . . . . . . . . Largest Group 20 | . . 2 1 . . . . . . 20 20 20 19 14 9 . . . . . . . Highest-Rated Group 705 | . . 42 11 . . . . . . 705 705 705 680 503 347 . . . . . . . Highest-Rated Ally 50 | . . 31 11 . . . . . . 50 50 50 50 50 46 . . . . . . . Total Orders 2 | . . . . . . . . . . . . . . . 2 . . . . . . . EXPLORE 1 | . . . . . . . . . . . . . . . 1 . . . . . . . RETURN 1 | . . . . . . . . . . . . . . . 1 . . . . . . . Ally Attacks 116 | . . 2 . . . . . . . . . 42 . 36 36 . . . . . . . Total Damage 3792 | . . 327 . . . . . . . . . 1071 . 1225 1169 . . . . . . . Kills 19 | . . 4 . . . . . . . . . 5 . 5 5 . . . . . . . Allies Corrupted 2 | . . . . . . . . . . . . . . . 2 . . . . . . . Allies Melted . | . . . . . . . . . . . . . . . . . . . . . . . Intel | -11 -10 -10 -9 -9 -8 -7 -7 -7 -6 -6 -6 -6 -5 -5 -5 -5 -4 -4 -4 -4 -4 -3 ------- Run | Scr Mat Min Mat Sto Mat Fac Low Low Fac Was Fac DSF Fac Upp Upp War Pro Fac Upp Upp Zhi Pro Robot Analysis Total 5 | . . . 1 . . . . . . . . . . . . . . . . . 4 . Derelict Logs Recovered 12 | . . 2 . . . . 2 . . . . . . 2 2 . 1 . 2 1 . . Drone Launches 3 | . . . . . . . . . . . . . . . 3 . . . . . . . Drone Recoveries . | . . . . . . . . . . . . . . . . . . . . . . . Exploration | -11 -10 -10 -9 -9 -8 -7 -7 -7 -6 -6 -6 -6 -5 -5 -5 -5 -4 -4 -4 -4 -4 -3 ------------- Run | Scr Mat Min Mat Sto Mat Fac Low Low Fac Was Fac DSF Fac Upp Upp War Pro Fac Upp Upp Zhi Pro Turns Passed 6361 | 116 535 1016 432 1102 102 426 287 28 190 108 90 111 53 231 279 383 219 62 208 156 104 123 Spaces Moved 8941 | 73 287 592 185 545 216 1101 806 67 560 215 152 143 145 413 464 939 402 160 605 366 215 290 Core 14 | 1 . . . . . . . . . . . . . . . . . . . . . 13 Treads 1486 | . 164 592 185 545 . . . . . . . . . . . . . . . . . . Legs . | . . . . . . . . . . . . . . . . . . . . . . . Wheels 195 | 72 123 . . . . . . . . . . . . . . . . . . . . . Hover . | . . . . . . . . . . . . . . . . . . . . . . . Flight 7246 | . . . . . 216 1101 806 67 560 215 152 143 145 413 464 939 402 160 605 366 215 277 Fastest Speed 27 | 50 100 160 160 160 31 31 31 31 27 27 27 27 28 28 28 28 28 34 34 34 40 40 Average Speed 53 | 99 134 160 160 160 31 31 31 31 27 27 27 27 28 28 28 28 28 34 34 39 40 40 Slowest Speed 160 | 100 160 160 160 160 31 31 31 31 31 27 27 28 28 28 28 28 114 37 34 40 40 50 Overloaded Moves . | . . . . . . . . . . . . . . . . . . . . . . . Propulsion Burnouts . | . . . . . . . . . . . . . . . . . . . . . . . Robots Hopped 6 | . . . . . . 4 . . . . . . . . 1 1 . . . . . . Cave-ins Triggered 3 | . . . . . . . . . . . . . . . . . 3 . . . . . Teleports 1 | . . . . . . . . . . . . . . . . . . . . . 1 . Exploration Rate (%) 48 | 5 43 95 18 71 25 29 80 9 15 96 6 94 3 54 68 94 62 5 73 60 62 58 Regions Visited 22 Branch Regions 12 Pre-discovered Areas 7 | . . 3 . . . . . . . . . . . . . . . . 1 . 3 . Known Exits Taken 11 | . . . . . . . 1 . . . 1 . 1 1 1 1 1 1 1 1 1 . Unknown Exits Taken 8 | 1 1 1 1 1 1 1 . 1 . . . . . . . . . . . . . . Scrap Searched 20 | . . 3 . . . . 4 . . . . . . 2 2 . 3 . 3 1 . 2 Spaces Dug 59 | . . . . . . 9 13 1 . . . . . . 2 . 32 . . 2 . . Terrain Destroyed 121 | . . . . 15 . 56 13 1 . . . . . . 2 . 32 . . 2 . . Melee 51 | . . . . . . 1 13 1 . . . . . . 2 . 32 . . 2 . . Projectile . | . . . . . . . . . . . . . . . . . . . . . . . AOE 70 | . . . . 15 . 55 . . . . . . . . . . . . . . . . Terrain Rammed . | . . . . . . . . . . . . . . . . . . . . . . . Walls Destroyed . | . . . . . . . . . . . . . . . . . . . . . . . Machines Disabled . | . . . . . . . . . . . . . . . . . . . . . . . Actions | -11 -10 -10 -9 -9 -8 -7 -7 -7 -6 -6 -6 -6 -5 -5 -5 -5 -4 -4 -4 -4 -4 -3 --------- Run | Scr Mat Min Mat Sto Mat Fac Low Low Fac Was Fac DSF Fac Upp Upp War Pro Fac Upp Upp Zhi Pro Total 10166 | 99 375 644 291 712 247 1168 820 72 597 265 200 215 157 527 607 1058 441 165 606 373 232 295 Wait 780 | 7 36 18 55 88 12 34 . 1 16 45 49 46 7 115 137 104 6 . . . . 4 Move 8906 | 72 286 591 184 544 215 1092 805 66 560 214 151 142 144 412 461 936 399 159 604 365 214 290 Hop 6 | . . . . . . 4 . . . . . . . . 1 1 . . . . . . Pick Up 96 | 6 8 10 13 14 2 6 . 1 7 3 . 9 3 . 2 5 . 1 1 . 5 . Fast Attach 30 | 6 3 1 2 . 1 3 . . 3 . . 2 . . . . . 2 . 1 5 1 Attach 34 | . 2 1 2 2 2 2 1 1 4 . . 1 2 . 1 3 2 2 1 2 3 . Detach 10 | . . . . . . 2 1 2 . . . 1 . . . 1 . 1 . 1 1 . Swap 58 | . 7 5 6 18 7 3 . . 3 . . 5 . . 1 3 . . . . . . Drop 82 | . 2 9 11 13 7 10 . . 4 3 . 9 1 . 2 5 . . . 2 4 . Fire 110 | 8 31 9 17 33 1 11 . . . . . . . . . . . . . . . . Melee 51 | . . . . . . 1 13 1 . . . . . . 2 . 32 . . 2 . . Ram . | . . . . . . . . . . . . . . . . . . . . . . . Kick . | . . . . . . . . . . . . . . . . . . . . . . . Crush 1 | . . . 1 . . . . . . . . . . . . . . . . . . . Escape Stasis 2 | . . . . . . . . . . . . . . . . . 2 . . . . . Rewire . | . . . . . . . . . . . . . . . . . . . . . . . Trap . | . . . . . . . . . . . . . . . . . . . . . . . Miscellaneous . | . . . . . . . . . . . . . . . . . . . . . . . Route ------- -11/Scrapyard -10/Materials (discovered 2 exits: *Mat / *Min) -10/Mines (discovered 2 exits: *Mat x2) -9/Materials -9/Storage -8/Materials -7/Factory (discovered 2 exits: *Fac / [*Low]) -7/Lower Caves -7/Lower Caves -6/Factory (discovered 2 exits: [*Low] / Ext) -6/Waste -6/Factory -6/DSF -5/Factory -5/Upper Caves -5/Upper Caves (discovered 2 exits: *Fac / *War) -5/Warlord -4/Proximity Caves -4/Factory (discovered 3 exits: Res / *Upp / Arm) -4/Upper Caves -4/Upper Caves -4/Zhirov -3/Proximity Caves History --------- Turn | Location | Event 20 | -11/Scrapyard | Discovered new exit (range 15) 117 | -11/Scrapyard | Entered Materials 205 | -10/Materials | Discovered new exit (range 7) 303 | -10/Materials | Discovered new exit (range 16) 309 | -10/Materials | Build established: Mutant 531 | -10/Materials | Repaired Lgt. Treads 652 | -10/Materials | Entered Mines 667 | -10/Mines | Learned location of Storage (-9) 692 | -10/Mines | Discovered new exit (range 5) 800 | -10/Mines | Learned location of Recycling (-9) 1380 | -10/Mines | Met a Derelict who couldn't figure out how to use a Trap Extractor 1632 | -10/Mines | Discovered new exit (range 10) 1668 | -10/Mines | Entered Materials 1668 | -9/Materials | Accompanied by 1 ally 1668 | -9/Materials | Evolved 2 slots: Propulsion x1, Utility x1 1893 | -9/Materials | Discovered new exit (range 14) 2100 | -9/Materials | Entered Storage 2780 | -9/Storage | Build established: Scavenger-Mutant 3157 | -9/Storage | Found Prototype Launcher 3158 | -9/Storage | Identified Scatter Rocket Array 3188 | -9/Storage | Discovered new exit (range 6) 3202 | -9/Storage | System corruption reached 10% 3202 | -9/Storage | Entered Materials 3202 | -8/Materials | Evolved 2 slots: Propulsion x1, Utility x1 3297 | -8/Materials | Discovered new exit (range 6) 3304 | -8/Materials | Entered Factory 3304 | -7/Factory | Evolved 2 slots: Utility x2 3333 | -7/Factory | Discovered new exit (range 16) 3377 | -7/Factory | Central database locked down 3514 | -7/Factory | Build established: Sprinter 3676 | -7/Factory | Fabricated Kinetic Spear? 3704 | -7/Factory | Search patrols dispatched 3718 | -7/Factory | Lost 3 parts (1p2w) 3726 | -7/Factory | Discovered new exit (range 12) 3730 | -7/Factory | Entered Lower Caves 3763 | -7/Lower Caves | Attracted the attention of an 0b10 checkpoint 3781 | -7/Lower Caves | Learned location of 1 exit from Factory 3789 | -7/Lower Caves | Attracted the attention of an 0b10 outpost 3796 | -7/Lower Caves | Encountered a Warlord checkpoint 3836 | -7/Lower Caves | Spotted B-75 Beast 3927 | -7/Lower Caves | Identified exit to Lower Caves 4017 | -7/Lower Caves | Entered another Lower Caves area 4021 | -7/Lower Caves | Acquired the password to a Derelict Tinkerer's latest research 4025 | -7/Lower Caves | Found Prototype Special Weapon 4026 | -7/Lower Caves | Identified Molecular Deconstructor 4034 | -7/Lower Caves | Spotted B-75 Beast 4042 | -7/Lower Caves | Discovered new exit (range 9) 4045 | -7/Lower Caves | Entered Factory 4045 | -6/Factory | Evolved 2 slots: Power x1, Propulsion x1 4046 | -6/Factory | Identified exit to Extension 4207 | -6/Factory | Discovered new exit (range 3) 4235 | -6/Factory | Sucked down chute 4235 | -6/Factory | Entered Waste 4236 | -6/Waste | Joined by Warlord forces that had cleared the area 4294 | -6/Waste | Discovered new exit (range 14) 4297 | -6/Waste | Identified exit to Factory 4343 | -6/Waste | Entered Factory 4343 | -6/Factory | Accompanied by 20 allies 4383 | -6/Factory | Build established: Hacker-Sprinter 4384 | -6/Factory | Identified exit to DSF 4433 | -6/Factory | Entered DSF 4433 | -6/DSF | Accompanied by 20 allies 4440 | -6/DSF | Discovered new exit (range 13) 4454 | -6/DSF | Additional patrols routed to DSF 4511 | -6/DSF | Identified exit to Factory 4544 | -6/DSF | Entered Factory 4544 | -5/Factory | Accompanied by 19 allies 4544 | -5/Factory | Evolved 2 slots: Utility x2 4572 | -5/Factory | Discovered new exit (range 6) 4574 | -5/Factory | Identified exit to Upper Caves 4597 | -5/Factory | Entered Upper Caves 4597 | -5/Upper Caves | Accompanied by 14 allies 4797 | -5/Upper Caves | Discovered new exit (range 7) 4800 | -5/Upper Caves | Learned Factory emergency access door positions 4800 | -5/Upper Caves | Learned Factory trap positions 4802 | -5/Upper Caves | Identified exit to Upper Caves 4828 | -5/Upper Caves | Entered another Upper Caves area 4828 | -5/Upper Caves | Accompanied by 9 allies 4872 | -5/Upper Caves | Discovered new exit (range 12) 4875 | -5/Upper Caves | Identified exit to Factory 4888 | -5/Upper Caves | Learned 4 Factory zone layouts 4969 | -5/Upper Caves | Learned location of 1 exit from Factory 4969 | -5/Upper Caves | Learned 8 Research zone layouts 4969 | -5/Upper Caves | Learned Armory terminal intel 4969 | -5/Upper Caves | Learned Research garrison access intel 5053 | -5/Upper Caves | Identified exit to Warlord 5107 | -5/Upper Caves | Entered Warlord 5115 | -5/Warlord | Discovered new exit (range 12) 5118 | -5/Warlord | Identified exit to Proximity Caves 5169 | -5/Warlord | Found Prototype Special Weapon 5170 | -5/Warlord | Identified RU-N14's Throwing Claymores v3 5272 | -5/Warlord | Opened side exit 5348 | -5/Warlord | Visited the Vortex Lab 5363 | -5/Warlord | Received a Watcher feed algorithm from an ecstatic Tinkerer 5370 | -5/Warlord | Warlord's base attacked by MAIN.C 5399 | -5/Warlord | Met Warlord 5490 | -5/Warlord | Entered Proximity Caves 5513 | -4/Proximity Caves | Learned Research terminal intel 5567 | -4/Proximity Caves | Attracted the attention of an 0b10 checkpoint 5574 | -4/Proximity Caves | Spotted B-86 Titan 5590 | -4/Proximity Caves | Attracted the attention of an 0b10 outpost 5666 | -4/Proximity Caves | Crushed by falling debris 5667 | -4/Proximity Caves | System corruption reached 10% 5687 | -4/Proximity Caves | Crushed by falling debris 5693 | -4/Proximity Caves | Crushed by falling debris 5705 | -4/Proximity Caves | Discovered exit to Factory (range 12) 5709 | -4/Proximity Caves | Entered Factory 5709 | -4/Factory | Evolved 2 slots: Utility x2 5710 | -4/Factory | Identified exit to Armory 5711 | -4/Factory | Identified exit to Research 5712 | -4/Factory | Identified exit to Upper Caves 5713 | -4/Factory | Loaded intel: 91 trap records 5723 | -4/Factory | Identified exit to DSF 5724 | -4/Factory | Lost 6 parts (3n3u) 5771 | -4/Factory | Entered Upper Caves 5772 | -4/Upper Caves | Encountered a Warlord checkpoint 5951 | -4/Upper Caves | Discovered new exit (range 7) 5957 | -4/Upper Caves | Identified exit to Upper Caves 5968 | -4/Upper Caves | Learned location of Quarantine (-2) 5969 | -4/Upper Caves | Learned Research emergency access door positions 5979 | -4/Upper Caves | Entered another Upper Caves area 6021 | -4/Upper Caves | Lost 4 parts (1p2n1w) 6022 | -4/Upper Caves | Attracted the attention of an 0b10 outpost 6026 | -4/Upper Caves | Build established: Hacker-Mutant 6033 | -4/Upper Caves | Encountered a Warlord checkpoint 6097 | -4/Upper Caves | Discovered new exit (range 10) 6134 | -4/Upper Caves | Identified exit to Zhirov 6135 | -4/Upper Caves | Entered Zhirov 6135 | -4/Zhirov | Discovered new exit (range 3) 6136 | -4/Zhirov | Identified exit to Proximity Caves 6143 | -4/Zhirov | Met Zhirov 6154 | -4/Zhirov | Found Alien Artifact 6155 | -4/Zhirov | Identified Transdimensional Reconstructor 6155 | -4/Zhirov | Warped through subspace 6176 | -4/Zhirov | Found Alien Artifact 6177 | -4/Zhirov | Identified Integrated Dissipator 6177 | -4/Zhirov | Installed Integrated Dissipator, increased core heat dissipation (+20) 6191 | -4/Zhirov | Learned location of Testing (-3) 6191 | -4/Zhirov | Learned location of Command (-1) 6195 | -4/Zhirov | Zhirov requested help retrieving the SGEMP Prototype 6239 | -4/Zhirov | Entered Proximity Caves 6322 | -3/Proximity Caves | Lost 3 parts (3u) 6329 | -3/Proximity Caves | Spotted B-86 Titan 6355 | -3/Proximity Caves | Core integrity fell below 50% 6361 | -3/Proximity Caves | Core integrity fell below 20% 6362 | -3/Proximity Caves | Destroyed by G-67 Veteran with Plasma Rifle Last Messages --------------- 06325_ C-30 ARC bursts open, deploying its payload. 06325_ G-73 Enforcer unfolds itself. 06325_ G-67 Veteran unfolds itself. 06325_ EM Disruption Field destroyed. 06328_ Critical hit (Burn: +50). 06329_ Slug penetrates Wall. 06329_ Penetrated by Slug. 06329_ Slug penetrates G-67 Veteran. 06330_ Adv. Weight Redist. System destroyed. 06330_ Slug penetrates Wall. 06330_ Penetrated by Slug. 06331_ Exp. Propulsion Shielding destroyed. 06331_ Mic. Fission Core destroyed. 06339_ Hvy. Pick destroyed. 06352_ Field Propulsion Array destroyed. 06356_ Penetrated by Slug. 06356_ Slug penetrates Wall. 06356_ Critical hit (Burn: +50). 06358_ 0b10 Decoder Chip [Scout] destroyed. [Achievement: This Is Interesting...] Map ----- +----------------------------------------------------+ | | | | | ?????????????????????????????????????????????????? | | ?????????????????????????????????????????????????? | | ?????????????????????????????????????????????????? | | ?????????????????????????????????????????????????? | | ?????????????????????????????????????????????????? | | ?????????????????????????????????????????????????? | | ?????????????????????????????????????????????????? | | ?????????????????????????????????????????????????? | | ?????????????????????????????????????????????????? | | ?????????????????????????????????????????????????? | | ?????????????????????????????????????????????????? | | ?????????????????????????????????????????????????? | | ?????????????????????????????????????????????????? | | ?????????????????????????????????????????????????? | | ?????????????????????????????????????####????????? | | ????????????????????????????####????## ##???????? | | ???????????????????????????## ###### #???????? | | ??????????????????????????## #???????? | | ????????????????????#?????# #???????? | | ?????? ##????## ???## ????# #????????? | | ??? #?### ## ???# sss #????????? | | ? ## #?##s s## #????????? | | BB ## ### #????????? | | # BB @ ;#?## ##???????? | | # ?# ggg##??## ## #???????? | | # #?## ###g% #????#### #???????? | | ?# #??### ???##hg#??????# #???????? | | ??# #????## ????##h #??????## #???????? | | ??# ##????# ????## #######?# ##???????? | | ??# #????#?????# ### #????????? | | ??# ##???#####?# #####????????? | | ??? "#### ### #????????????? | | ?#####??# ## ######????????????? | | ?# ##?# ##?????????????????? | | ?# ### ## ##??????????????????? | | ?# #### ##???????????????????? | | ## "#??# #????????????????????? | | # ##?# #???????????????????? | | ##?# ## #???????????????????? | | ## ###### #???????????????????? | | # ### #????# #???????????????????? | | # "#?# #????# #???????????????????? | | "%" ###?????? #???????????????????? | | #### " ????????? #???????????????????? | | ##??### ### ????????? ???????????????????? | | #?????####?## #????????? ???????????????????? | | #??????????# #????????? ???????????????????? | | #??????????## ????????? #???????????????????? | +----------------------------------------------------+ Best States ------------- Heat Dissipation 63 Energy Generation 28 Energy Capacity 310 Matter Stores 300 Matter Capacity 300 Sight Range 20 Robot Scan Range 16 Terrain Scan Range 16 Terrain Scan Density 10 Jamming Range 12 Additional Mass Support 9 Resistance: EM 25 Propulsion Shielding 90 Evasion (%) 74 Targeting Accuracy 5 Recoil Reduction 3 Particle Charging 30 Offensive Hacking 34 Defensive Hacking 14 Trap Extractor Capacity 6 Item Schematics ----------------- Airjet | -9/Materials | Scanalyzed Imp. Flight Unit | -7/Factory | Hacked Adv. Hacking Suite | -6/Factory | Scanalyzed Assault Drone Bay | -4/Zhirov | Free Exp. Heat Sink | -4/Zhirov | Free Exp. Optical Array | -4/Zhirov | Free Imp. Arc Thrower | -4/Zhirov | Free Robot Schematics ------------------ None Fabricated ------------ Kinetic Spear | x1 | -7/Factory | Preloaded Alien Tech Used ----------------- Transdimensional Reconstructor Integrated Dissipator Achievements -------------- A Powerful Ally? Adventurer Alien Tech Armchair Analyst Explorer Just What I Needed Knowing Is Half The Battle Ooh, Shiny! Part-time Excavator Power Corrupts Prolific Hacker Slippery One Subspace Traveler System Compromised The More The Merrier The Science Guy This Is Interesting... Unlikely Earthworm We Are Legion Challenges ------------ None Game ------ Seed CannonScatterShotgun Manual? 0 Play Time 03:27:08 Cumulative 19.1 hours Start 2022.04.24 @ 11:52:27 End 2022.04.24 @ 17:10:57 Sessions 1 Manual Loads 0 Difficulty Rogue Special Mode None Game No. 8 Rogue 8 Adventurer 0 Explorer 0 Win Type - Total 0 Types 0/0/0/0/0/0/0/0/0 Lore% 25 Gallery% 20 Achievement% 21 Wizard Run 0 Options --------- ASCII 0 Keyboard 0 Movement Mouse Keybinds 0 Fullscreen 2 Font 18/TerminusBold Map View 76x50 Tactical HUD 1 Map Filters NONE Filters NONE Steam 1 RUN: fe07ece6-2ef7-4e0f-86df-d543d1eebe4c